fUSD/lending_fUSD_20240105
["ID","MTS","AMOUNT","RATE_DAILY","PERIOD"]
[310323462,1704473454714,-500.0,0.0003041,2]
[310323463,1704473454723,-500.0,0.0003041,2]
[310323464,1704473454734,-500.0,0.0003041,2]
[310323465,1704473454743,-500.0,0.0003041,2]
[310323466,1704473454753,-500.0,0.0003041,2]
[310323467,1704473454763,-500.0,0.0003041,2]
[310323468,1704473454772,-500.0,0.0003041,2]
[310323469,1704473454782,-500.0,0.0003041,2]
[310323470,1704473454791,-500.0,0.0003041,2]
[310323471,1704473454801,-500.0,0.0003041,2]
[310323472,1704473454811,-500.0,0.0003041,2]
[310323473,1704473454820,-500.0,0.0003041,2]
[310323474,1704473454830,-500.0,0.0003041,2]
[310323475,1704473454840,-500.0,0.0003041,2]
[310323476,1704473454850,-500.0,0.0003041,2]
[310323477,1704473454860,-500.0,0.0003041,2]
[310323478,1704473454869,-500.0,0.0003041,2]
[310323479,1704473454880,-500.0,0.0003041,2]
[310323480,1704473454891,-500.0,0.0003041,2]
[310323481,1704473454901,-500.0,0.0003041,2]
[310323482,1704473454910,-500.0,0.0003041,2]
[310323483,1704473454920,-1275.01,0.0003041,2]
[310323484,1704473454929,-500.0,0.0003041,2]
[310323485,1704473454939,-500.0,0.0003041,2]
[310323486,1704473454948,-300.0,0.0003041,2]
[310323487,1704473454957,-500.0,0.0003041,2]
[310323488,1704473454967,-500.0,0.0003041,2]
[310323489,1704473454979,-500.0,0.0003041,2]
[310323490,1704473454992,-500.0,0.0003041,2]
[310323491,1704473455003,-500.0,0.0003041,2]
[310323492,1704473455014,-500.0,0.0003041,2]
[310323493,1704473455025,-500.0,0.0003041,2]
[310323494,1704473455034,-500.0,0.0003041,2]
[310323495,1704473455044,-500.0,0.0003041,2]
[310323496,1704473455054,-500.0,0.0003041,2]
[310323497,1704473455064,-278.03821397,0.0003041,2]
[310323498,1704473455073,-500.0,0.0003041,2]
[310323499,1704473455083,-500.0,0.0003041,2]
[310323500,1704473455092,-500.0,0.0003041,2]
[310323501,1704473455101,-500.0,0.0003041,2]
[310323502,1704473455111,-500.0,0.0003041,2]
[310323503,1704473455121,-500.0,0.0003041,2]
[310323504,1704473455130,-500.0,0.0003041,2]
[310323505,1704473455139,-500.0,0.0003041,2]
[310323506,1704473455149,-843.96,0.0003041,2]
[310323507,1704473455158,-500.0,0.0003041,2]
[310323508,1704473455168,-500.0,0.0003041,2]
[310323509,1704473455178,-500.0,0.0003041,2]
[310323510,1704473455192,-500.0,0.0003041,2]
[310323511,1704473455202,-500.0,0.0003041,2]
[310323512,1704473455212,-500.0,0.0003041,2]
[310323513,1704473455223,-500.0,0.0003041,2]
[310323514,1704473455236,-500.0,0.0003041,2]
[310323515,1704473455246,-207.89,0.0003041,2]
[310323516,1704473455256,-500.0,0.0003041,2]
[310323517,1704473455267,-500.0,0.0003041,2]
[310323518,1704473455277,-500.0,0.0003041,2]
[310323519,1704473455287,-221.06593386,0.0003041,2]
[310323520,1704473455297,-500.0,0.0003041,2]
[310323521,1704473455309,-500.0,0.0003041,2]
[310323522,1704473455319,-501.05769413,0.0003041,2]
[310323523,1704473455329,-500.0,0.0003041,2]
[310323524,1704473455338,-500.0,0.0003041,2]
[310323525,1704473455348,-500.0,0.0003041,2]
[310323526,1704473455358,-500.0,0.0003041,2]
[310323527,1704473455369,-807.23,0.0003041,2]
[310323528,1704473455379,-500.0,0.0003041,2]
[310323529,1704473455388,-500.0,0.0003041,2]
[310323530,1704473455398,-500.0,0.0003041,2]
[310323531,1704473455408,-500.0,0.0003041,2]
[310323532,1704473455418,-500.0,0.0003041,2]
[310323533,1704473455428,-581.84793769,0.0003041,2]
[310323534,1704473455438,-500.0,0.0003041,2]
[310323535,1704473455447,-500.0,0.0003041,2]
[310323536,1704473455457,-500.0,0.0003041,2]
[310323537,1704473455467,-500.0,0.0003041,2]
[310323538,1704473455479,-500.0,0.0003041,2]
[310323539,1704473455489,-500.0,0.0003041,2]
[310323540,1704473455499,-500.0,0.0003041,2]
[310323541,1704473455509,-500.0,0.0003041,2]
[310323542,1704473455519,-500.0,0.0003041,2]
[310323543,1704473455529,-500.0,0.0003041,2]
[310323544,1704473455539,-500.0,0.0003041,2]
[310323545,1704473455549,-500.0,0.0003041,2]
[310323546,1704473455560,-500.0,0.0003041,2]
[310323547,1704473455570,-721.09,0.0003041,2]
[310323548,1704473455581,-500.0,0.0003041,2]
[310323549,1704473455590,-351.4703392,0.0003041,2]
[310323550,1704473455601,-500.0,0.0003041,2]
[310323551,1704473455611,-500.0,0.0003041,2]
[310323552,1704473455621,-500.0,0.0003041,2]
[310323553,1704473455631,-500.0,0.0003041,2]
[310323554,1704473455641,-500.0,0.0003041,2]
[310323555,1704473455651,-500.0,0.0003041,2]
[310323556,1704473455661,-500.0,0.0003041,2]
[310323557,1704473455671,-500.0,0.0003041,2]
[310323558,1704473455681,-500.0,0.0003041,2]
[310323559,1704473455691,-500.0,0.0003041,2]
[310323560,1704473455702,-500.0,0.0003041,2]
[310323561,1704473455712,-500.0,0.0003041,2]
[310323562,1704473455722,-500.0,0.0003041,2]
[310323563,1704473455734,-500.0,0.0003041,2]
[310323564,1704473455744,-500.0,0.0003041,2]
[310323565,1704473455754,-500.0,0.0003041,2]
[310323566,1704473455763,-500.0,0.0003041,2]
[310323567,1704473455775,-500.0,0.0003041,2]
[310323569,1704473455785,-500.0,0.0003041,2]
[310323570,1704473455795,-500.0,0.0003041,2]
[310323571,1704473455805,-500.0,0.0003041,2]
[310323572,1704473455815,-413.19,0.0003041,2]
[310323573,1704473455824,-593.3,0.0003041,2]
[310323574,1704473455834,-500.0,0.0003041,2]
[310323575,1704473455844,-500.0,0.0003041,2]
[310323576,1704473455854,-500.0,0.0003041,2]
[310323577,1704473455866,-526.94454391,0.0003041,2]
[310323578,1704473455877,-500.0,0.0003041,2]
[310323579,1704473455888,-500.0,0.0003041,2]
[310323580,1704473455898,-500.0,0.0003041,2]
[310323581,1704473455907,-902.26,0.0003041,2]
[310323582,1704473455917,-12011.09,0.0003041,2]
[310323583,1704473455927,-500.0,0.0003041,2]
[310323584,1704473455937,-500.0,0.0003041,2]
[310323585,1704473455946,-500.0,0.0003041,2]
[310323587,1704473455956,-363.48176702,0.0003041,2]
[310323588,1704473455965,-256.10904559,0.0003041,2]
[310323589,1704473455975,-625.72108548,0.0003041,2]
[310323590,1704473455987,-612.44,0.0003041,2]
[310323591,1704473455996,-500.0,0.0003041,2]
[310323592,1704473456006,-1537.14,0.0003041,2]
[310323593,1704473456016,-500.0,0.0003041,2]
[310323594,1704473456026,-500.0,0.0003041,2]
[310323595,1704473456036,-1588.31,0.0003041,2]
[310323596,1704473456045,-500.0,0.0003041,2]
[310323597,1704473456055,-5973.26,0.0003041,2]
[310323598,1704473456065,-500.0,0.0003041,2]
[310323599,1704473456075,-562.91,0.0003041,2]
[310323600,1704473456085,-500.0,0.0003041,2]
[310323601,1704473456096,-500.0,0.0003041,2]
[310323602,1704473456105,-500.0,0.0003041,2]
[310323603,1704473456115,-500.0,0.0003041,2]
[310323604,1704473456125,-1752.6,0.0003041,2]
[310323605,1704473456135,-500.0,0.0003041,2]
[310323606,1704473456145,-500.0,0.0003041,2]
[310323607,1704473456155,-3119.17,0.0003041,2]
[310323608,1704473456166,-500.0,0.0003041,2]
[310323609,1704473456176,-500.0,0.0003041,2]
[310323610,1704473456185,-500.0,0.0003041,2]
[310323611,1704473456195,-500.0,0.0003041,2]
[310323612,1704473456205,-1026.31,0.0003041,2]
[310323613,1704473456214,-500.0,0.0003041,2]
[310323614,1704473456224,-1520.28,0.0003041,2]
[310323615,1704473456238,-1346.93,0.0003041,2]
[310323616,1704473456248,-500.0,0.0003041,2]
[310323617,1704473456257,-500.0,0.0003041,2]
[310323618,1704473456266,-160.9016698,0.0003041,2]
[310323619,1704473456303,-339.0983302,0.0003041,2]
[310323620,1704473456313,-500.0,0.0003041,2]
[310323621,1704473456322,-500.0,0.0003041,2]
[310323622,1704473456332,-500.0,0.0003041,2]
[310323623,1704473456342,-500.0,0.0003041,2]
[310323624,1704473456352,-500.0,0.0003041,2]
[310323625,1704473456362,-500.0,0.0003041,2]
[310323626,1704473456371,-500.0,0.0003041,2]
[310323627,1704473456381,-500.0,0.0003041,2]
[310323628,1704473456390,-500.0,0.0003041,2]
[310323629,1704473456400,-500.0,0.0003041,2]
[310323630,1704473456409,-500.0,0.0003041,2]
[310323631,1704473456419,-621.93,0.0003041,2]
[310323632,1704473456428,-500.0,0.0003041,2]
[310323633,1704473456438,-500.0,0.0003041,2]
[310323634,1704473456447,-2085.78,0.0003041,2]
[310323635,1704473456457,-871.85,0.0003041,2]
[310323636,1704473456466,-522.5,0.0003041,2]
[310323637,1704473456476,-790.33,0.0003041,2]
[310323638,1704473456486,-651.26,0.0003041,2]
[310323639,1704473456495,-500.0,0.0003041,2]
[310323640,1704473456505,-500.0,0.0003041,2]
[310323641,1704473456519,-500.0,0.0003041,2]
[310323642,1704473456529,-500.0,0.0003041,2]
[310323643,1704473456538,-500.0,0.0003041,2]
[310323644,1704473456548,-1658.28,0.0003041,2]
[310323645,1704473456559,-500.0,0.0003041,2]
[310323646,1704473456569,-1685.8154198,0.0003041,2]
[310323647,1704473457607,-500.0,0.00030136,2]
[310323648,1704473457620,-500.0,0.00030136,2]
[310323649,1704473457632,-470.02175908,0.00030136,2]
[310323650,1704473457642,-428.51980171,0.00030136,2]
[310323651,1704473457654,-860.0045802,0.0003041,2]
[310323652,1704473457667,-537.06847367,0.0003041,2]
[310323653,1704473457681,-500.0,0.0003041,2]
[310323654,1704473457694,-2368.93,0.0003041,2]
[310323655,1704473457711,-5035.78,0.0003041,2]
[310323656,1704473457723,-500.0,0.0003041,2]
[310323657,1704473457736,-500.0,0.0003041,2]
[310323658,1704473457762,-500.0,0.0003041,2]
[310323659,1704473457775,-500.0,0.0003041,2]
[310323660,1704473457788,-500.0,0.0003041,2]
[310323661,1704473457800,-1615.12,0.0003041,2]
[310323662,1704473457813,-3964.99,0.0003041,2]
[310323663,1704473457826,-500.0,0.0003041,2]
[310323664,1704473457840,-855.65,0.0003041,2]
[310323665,1704473457853,-500.0,0.0003041,2]
[310323666,1704473457867,-500.0,0.0003041,2]
[310323667,1704473457881,-900.42,0.0003041,2]
[310323668,1704473457894,-500.0,0.0003041,2]
[310323669,1704473457906,-527.61,0.0003041,2]
[310323670,1704473457919,-500.0,0.0003041,2]
[310323671,1704473457932,-500.0,0.0003041,2]
[310323672,1704473457944,-3932.79,0.0003041,2]
[310323673,1704473457956,-500.0,0.0003041,2]
[310323674,1704473457969,-15880.58,0.0003041,2]
[310323675,1704473457983,-630.59,0.0003041,2]
[310323676,1704473457995,-500.0,0.0003041,2]
[310323677,1704473458007,-2821.0,0.0003041,2]
[310323678,1704473458020,-500.0,0.0003041,2]
[310323679,1704473458032,-500.0,0.0003041,2]
[310323680,1704473458045,-500.0,0.0003041,2]
[310323681,1704473458056,-500.0,0.0003041,2]
[310323682,1704473458069,-500.0,0.0003041,2]
[310323683,1704473458081,-500.0,0.0003041,2]
[310323684,1704473458094,-500.0,0.0003041,2]
[310323685,1704473458106,-1090.66,0.0003041,2]
[310323686,1704473458118,-500.0,0.0003041,2]
[310323687,1704473458130,-500.0,0.0003041,2]
[310323688,1704473458141,-500.0,0.0003041,2]
[310323689,1704473458153,-500.0,0.0003041,2]
[310323690,1704473458166,-1511.19,0.0003041,2]
[310323691,1704473458185,-500.0,0.0003041,2]
[310323692,1704473458205,-668.86,0.0003041,2]
[310323693,1704473458220,-500.0,0.0003041,2]
[310323694,1704473458234,-500.0,0.0003041,2]
[310323695,1704473458250,-1950.6,0.0003041,2]
[310323696,1704473458265,-527.49,0.0003041,2]
[310323697,1704473458279,-7990.73,0.0003041,2]
[310323698,1704473458294,-500.0,0.0003041,2]
[310323699,1704473458310,-500.0,0.0003041,2]
[310323700,1704473458323,-2431.79,0.0003041,2]
[310323701,1704473458337,-500.0,0.0003041,2]
[310323702,1704473458352,-500.0,0.0003041,2]
[310323703,1704473458365,-500.0,0.0003041,2]
[310323704,1704473458379,-1509.04,0.0003041,2]
[310323705,1704473458392,-500.0,0.0003041,2]
[310323706,1704473458406,-500.0,0.0003041,2]
[310323707,1704473458420,-752.06,0.0003041,2]
[310323708,1704473458433,-500.0,0.0003041,2]
[310323709,1704473458446,-555.27,0.0003041,2]
[310323710,1704473458460,-500.0,0.0003041,2]
[310323711,1704473458472,-6614.78,0.0003041,2]
[310323712,1704473458486,-500.0,0.0003041,2]
[310323713,1704473458499,-500.0,0.0003041,2]
[310323714,1704473458511,-500.0,0.0003041,2]
[310323715,1704473458524,-1289.91,0.0003041,2]
[310323716,1704473458537,-500.0,0.0003041,2]
[310323717,1704473458549,-1136.89,0.0003041,2]
[310323718,1704473458562,-500.0,0.0003041,2]
[310323719,1704473458574,-646.07,0.0003041,2]
[310323720,1704473458586,-500.0,0.0003041,2]
[310323721,1704473458599,-500.0,0.0003041,2]
[310323722,1704473458612,-500.0,0.0003041,2]
[310323723,1704473458625,-588.45,0.0003041,2]
[310323724,1704473458638,-1154.77,0.0003041,2]
[310323725,1704473458656,-500.0,0.0003041,2]
[310323726,1704473458670,-500.0,0.0003041,2]
[310323727,1704473458686,-1148.85,0.0003041,2]
[310323728,1704473458704,-500.0,0.0003041,2]
[310323729,1704473458718,-500.0,0.0003041,2]
[310323730,1704473458733,-500.0,0.0003041,2]
[310323731,1704473458746,-500.0,0.0003041,2]
[310323732,1704473458761,-864.89,0.0003041,2]
[310323733,1704473458774,-500.0,0.0003041,2]
[310323734,1704473458788,-746.81,0.0003041,2]
[310323735,1704473458801,-500.0,0.0003041,2]
[310323736,1704473458814,-1086.86,0.0003041,2]
[310323737,1704473458827,-1747.09,0.0003041,2]
[310323738,1704473458841,-500.0,0.0003041,2]
[310323739,1704473458854,-500.0,0.0003041,2]
[310323740,1704473458868,-500.0,0.0003041,2]
[310323741,1704473458882,-585.14,0.0003041,2]
[310323742,1704473458895,-500.0,0.0003041,2]
[310323743,1704473458908,-500.0,0.0003041,2]
[310323744,1704473458921,-500.0,0.0003041,2]
[310323745,1704473458934,-500.0,0.0003041,2]
[310323746,1704473458947,-500.0,0.0003041,2]
[310323747,1704473458960,-500.0,0.0003041,2]
[310323748,1704473458976,-500.0,0.0003041,2]
[310323749,1704473458991,-500.0,0.0003041,2]
[310323750,1704473459005,-680.71,0.0003041,2]
[310323751,1704473459018,-898.8,0.0003041,2]
[310323752,1704473459032,-500.0,0.0003041,2]
[310323753,1704473459045,-581.39,0.0003041,2]
[310323754,1704473459059,-500.0,0.0003041,2]
[310323755,1704473459072,-2794.23,0.0003041,2]
[310323756,1704473459085,-2835.72,0.0003041,2]
[310323757,1704473459099,-2858.86,0.0003041,2]
[310323758,1704473459112,-500.0,0.0003041,2]
[310323759,1704473459124,-500.0,0.0003041,2]
[310323760,1704473459137,-500.0,0.0003041,2]
[310323761,1704473459150,-500.0,0.0003041,2]
[310323762,1704473459162,-533.41,0.0003041,2]
[310323763,1704473459174,-500.0,0.0003041,2]
[310323764,1704473459187,-500.0,0.0003041,2]
[310323765,1704473459200,-2517.57,0.0003041,2]
[310323766,1704473459212,-1374.42,0.0003041,2]
[310323767,1704473459226,-500.0,0.0003041,2]
[310323768,1704473459238,-500.0,0.0003041,2]
[310323769,1704473459250,-500.0,0.0003041,2]
[310323770,1704473459264,-500.0,0.0003041,2]
[310323771,1704473459276,-2755.52,0.0003041,2]
[310323772,1704473459289,-2511.86,0.0003041,2]
[310323773,1704473459301,-500.0,0.0003041,2]
[310323774,1704473459314,-500.0,0.0003041,2]
[310323775,1704473459326,-1222.0,0.0003041,2]
[310323776,1704473459338,-4236.93,0.0003041,2]
[310323777,1704473459351,-814.18,0.0003041,2]
[310323778,1704473459363,-500.0,0.0003041,2]
[310323779,1704473459375,-500.0,0.0003041,2]
[310323780,1704473459387,-500.0,0.0003041,2]
[310323781,1704473459399,-2392.95,0.0003041,2]
[310323782,1704473459411,-500.0,0.0003041,2]
[310323783,1704473459423,-1842.01,0.0003041,2]
[310323784,1704473459434,-804.31,0.0003041,2]
[310323785,1704473459446,-645.88,0.0003041,2]
[310323786,1704473459458,-471.56147924,0.0003041,2]
[310323787,1704473459470,-500.0,0.0003041,2]
[310323788,1704473459481,-500.0,0.0003041,2]
[310323789,1704473459493,-780.05,0.0003041,2]
[310323790,1704473459505,-20128.17,0.0003041,2]
[310323791,1704473459516,-500.0,0.0003041,2]
[310323792,1704473459528,-618.16,0.0003041,2]
[310323793,1704473459540,-500.0,0.0003041,2]
[310323794,1704473459551,-500.0,0.0003041,2]
[310323795,1704473459564,-500.0,0.0003041,2]
[310323796,1704473459576,-506.91976643,0.0003041,2]
[310323797,1704473459588,-510.82,0.0003041,2]
[310323798,1704473459599,-500.0,0.0003041,2]
[310323799,1704473459612,-500.0,0.0003041,2]
[310323800,1704473459624,-500.0,0.0003041,2]
[310323801,1704473459635,-1056.97,0.0003041,2]
[310323802,1704473459645,-1483.19,0.0003041,2]
[310323803,1704473459654,-500.0,0.0003041,2]
[310323804,1704473459664,-500.0,0.0003041,2]
[310323805,1704473459674,-500.0,0.0003041,2]
[310323806,1704473459684,-1304.64,0.0003041,2]
[310323807,1704473459693,-500.0,0.0003041,2]
[310323808,1704473459704,-500.0,0.0003041,2]
[310323809,1704473459714,-500.0,0.0003041,2]
[310323810,1704473459724,-3583.58,0.0003041,2]
[310323811,1704473459734,-759.04,0.0003041,2]
[310323812,1704473459744,-3227.18,0.0003041,2]
[310323813,1704473459753,-500.0,0.0003041,2]
[310323814,1704473459763,-1800.48,0.0003041,2]
[310323815,1704473459773,-768.62,0.0003041,2]
[310323816,1704473459782,-500.0,0.0003041,2]
[310323817,1704473459792,-500.0,0.0003041,2]
[310323818,1704473459801,-500.0,0.0003041,2]
[310323819,1704473459811,-2756.04,0.0003041,2]
[310323820,1704473459820,-500.0,0.0003041,2]
[310323821,1704473459831,-2834.13,0.0003041,2]
[310323822,1704473459840,-1051.18,0.0003041,2]
[310323823,1704473459850,-2515.3,0.0003041,2]
[310323824,1704473459859,-500.0,0.0003041,2]
[310323825,1704473459871,-5299.03,0.0003041,2]
[310323826,1704473459882,-253.23660421,0.0003041,2]
[310323827,1704473459892,-575.43198704,0.0003041,2]
[310323828,1704473459902,-500.0,0.0003041,2]
[310323829,1704473459911,-664.57,0.0003041,2]
[310323830,1704473459921,-537.2,0.0003041,2]
[310323831,1704473459930,-500.0,0.0003041,2]
[310323832,1704473459939,-500.0,0.0003041,2]
[310323833,1704473459949,-500.0,0.0003041,2]
[310323834,1704473459959,-512.71,0.0003041,2]
[310323835,1704473459968,-500.0,0.0003041,2]
[310323836,1704473459979,-500.0,0.0003041,2]
[310323837,1704473459989,-500.0,0.0003041,2]
[310323838,1704473460000,-500.0,0.0003041,2]
[310323839,1704473460010,-500.0,0.0003041,2]
[310323840,1704473460020,-1696.0,0.0003041,2]
[310323841,1704473460030,-3340.06,0.0003041,2]
[310323842,1704473460040,-500.0,0.0003041,2]
[310323843,1704473460051,-2490.22,0.0003041,2]
[310323844,1704473460061,-551.10855751,0.0003041,2]
[310323845,1704473460071,-1285.5,0.0003041,2]
[310323846,1704473460082,-500.0,0.0003041,2]
[310323847,1704473460092,-500.0,0.0003041,2]
[310323848,1704473460102,-500.0,0.0003041,2]
[310323849,1704473460112,-848.87,0.0003041,2]
[310323850,1704473460123,-500.0,0.0003041,2]
[310323851,1704473460133,-451.98045225,0.0003041,2]
[310323852,1704473460142,-554.12,0.0003041,2]
[310323853,1704473460152,-606.02,0.0003041,2]
[310323854,1704473460162,-11508.87,0.0003041,2]
[310323855,1704473460171,-500.0,0.0003041,2]
[310323856,1704473460181,-500.0,0.0003041,2]
[310323857,1704473460190,-500.0,0.0003041,2]
[310323858,1704473460200,-1649.63,0.0003041,2]
[310323859,1704473460209,-1188.82,0.0003041,2]
[310323860,1704473460218,-500.0,0.0003041,2]
[310323861,1704473460227,-500.0,0.0003041,2]
[310323862,1704473460238,-687.41,0.0003041,2]
[310323863,1704473460247,-1161.09,0.0003041,2]
[310323864,1704473460257,-500.0,0.0003041,2]
[310323865,1704473460780,-994.25,0.0003041,2]
[310323866,1704473460802,-500.0,0.0003041,2]
[310323867,1704473460822,-500.0,0.0003041,2]
[310323868,1704473460845,-907.04,0.0003041,2]
[310323869,1704473460863,-4030.69,0.0003041,2]
[310323870,1704473460873,-3783.36,0.0003041,2]
[310323871,1704473460884,-500.0,0.0003041,2]
[310323872,1704473460896,-500.0,0.0003041,2]
[310323873,1704473460905,-500.0,0.0003041,2]
[310323874,1704473460915,-589.70140977,0.0003041,2]
[310323875,1704473460925,-2006.85,0.0003041,2]
[310323876,1704473460934,-871.44,0.0003041,2]
[310323877,1704473460944,-500.0,0.0003041,2]
[310323878,1704473460954,-273.00639623,0.0003041,2]
[310323879,1704473460964,-500.0,0.0003041,2]
[310323880,1704473460973,-500.0,0.0003041,2]
[310323881,1704473460984,-500.0,0.0003041,2]
[310323882,1704473460994,-500.0,0.0003041,2]
[310323883,1704473461004,-8452.87,0.0003041,2]
[310323884,1704473461014,-1134.28,0.0003041,2]
[310323885,1704473461024,-500.0,0.0003041,2]
[310323886,1704473461033,-500.0,0.0003041,2]
[310323887,1704473461042,-500.0,0.0003041,2]
[310323888,1704473461053,-566.66,0.0003041,2]
[310323889,1704473461062,-500.0,0.0003041,2]
[310323890,1704473461074,-1157.92,0.0003041,2]
[310323891,1704473461084,-500.0,0.0003041,2]
[310323892,1704473461094,-500.0,0.0003041,2]
[310323893,1704473461103,-500.0,0.0003041,2]
[310323894,1704473461113,-156.43513441,0.0003041,2]
[310323895,1704473461123,-500.0,0.0003041,2]
[310323896,1704473461133,-512.07,0.0003041,2]
[310323897,1704473461142,-500.0,0.0003041,2]
[310323898,1704473461156,-1638.59,0.0003041,2]
[310323899,1704473461171,-552.88525183,0.0003041,2]
[310323900,1704473461189,-1195.76,0.0003041,2]
[310323901,1704473461199,-1402.48,0.0003041,2]
[310323902,1704473461208,-500.0,0.0003041,2]
[310323903,1704473461218,-500.0,0.0003041,2]
[310323904,1704473461228,-7740.43,0.0003041,2]
[310323905,1704473461240,-500.0,0.0003041,2]
[310323906,1704473461249,-509.78504238,0.0003041,2]
[310323907,1704473461258,-500.0,0.0003041,2]
[310323908,1704473461268,-361.32889355,0.0003041,2]
[310323909,1704473461278,-500.0,0.0003041,2]
[310323910,1704473461289,-500.0,0.0003041,2]
[310323911,1704473461299,-500.0,0.0003041,2]
[310323912,1704473461309,-500.0,0.0003041,2]
[310323913,1704473461319,-504.28,0.0003041,2]
[310323914,1704473461329,-500.0,0.0003041,2]
[310323915,1704473461339,-1600.27,0.0003041,2]
[310323916,1704473461349,-500.0,0.0003041,2]
[310323917,1704473461359,-500.0,0.0003041,2]
[310323918,1704473461370,-2394.98,0.0003041,2]
[310323919,1704473461381,-500.0,0.0003041,2]
[310323920,1704473461391,-500.0,0.0003041,2]
[310323921,1704473461401,-500.0,0.0003041,2]
[310323922,1704473461412,-500.0,0.0003041,2]
[310323923,1704473461424,-1206.82,0.0003041,2]
[310323924,1704473461435,-384.66101184,0.0003041,2]
[310323925,1704473461445,-500.0,0.0003041,2]
[310323926,1704473461455,-500.0,0.0003041,2]
[310323927,1704473461465,-1116.25,0.0003041,2]
[310323928,1704473461474,-1341.2,0.0003041,2]
[310323929,1704473461486,-500.0,0.0003041,2]
[310323930,1704473461501,-1246.52,0.0003041,2]
[310323931,1704473461523,-500.0,0.0003041,2]
[310323932,1704473461533,-500.0,0.0003041,2]
[310323933,1704473461543,-500.0,0.0003041,2]
[310323934,1704473461554,-500.0,0.0003041,2]
[310323935,1704473461574,-500.0,0.0003041,2]
[310323936,1704473461593,-884.54,0.0003041,2]
[310323937,1704473461603,-500.0,0.0003041,2]
[310323938,1704473461613,-500.0,0.0003041,2]
[310323939,1704473461623,-3145.82,0.0003041,2]
[310323940,1704473461632,-834.29,0.0003041,2]
[310323941,1704473461641,-1393.24,0.0003041,2]
[310323942,1704473461651,-1151.41,0.0003041,2]
[310323943,1704473461661,-500.0,0.0003041,2]
[310323944,1704473461670,-500.0,0.0003041,2]
[310323945,1704473461680,-500.0,0.0003041,2]
[310323946,1704473461690,-500.0,0.0003041,2]
[310323947,1704473461700,-790.38,0.0003041,2]
[310323948,1704473461709,-542.06,0.0003041,2]
[310323949,1704473461720,-500.0,0.0003041,2]
[310323950,1704473461730,-501.35,0.0003041,2]
[310323951,1704473461743,-153.07743137,0.0003041,2]
[310323952,1704473461753,-1526.32,0.0003041,2]
[310323953,1704473461763,-757.34,0.0003041,2]
[310323954,1704473461773,-500.0,0.0003041,2]
[310323955,1704473461783,-500.0,0.0003041,2]
[310323956,1704473461793,-500.0,0.0003041,2]
[310323957,1704473461803,-500.0,0.0003041,2]
[310323958,1704473461812,-723.19,0.0003041,2]
[310323959,1704473461822,-168.98,0.00030485,2]
[310323960,1704473461831,-5000.0,0.000305,5]
[310323961,1704473461842,-190.4218231,0.00030514,2]
[310323962,1704473461852,-150.0,0.00030514,2]
[310323963,1704473461862,-859.736,0.00030515,2]